[Event "Titled Tuesday Blitz December 27 Late 2022"]
[White "Orzech, Dominik"]
[Black "Sargsyan, Anna M."]
[WhiteFideId "1115065"]
[BlackFideId "13308130"]
[WhiteElo "2308"]
[BlackElo "2375"]
[Result "0-1"]
[Round "05"]
[TimeControl "180+2"]
[Date "2022.12.27"]
[WhiteClock "0:00:13"]
[BlackClock "0:00:10"]

1. d4 {[%clk 0:02:57]}  d5 {[%clk 0:02:59]} 2. Nf3 {[%clk 0:02:56]}  Nf6 {[%clk 0:02:59]} 3. c4 {[%clk 0:02:57]}  c6 {[%clk 0:02:59]} 4. Nc3 {[%clk 0:02:55]}  dxc4 {[%clk 0:02:57]} 5. e4 {[%clk 0:02:54]}  b5 {[%clk 0:02:57]} 6. e5 {[%clk 0:02:53]}  Nd5 {[%clk 0:02:56]} 7. a4 {[%clk 0:02:54]}  e6 {[%clk 0:02:55]} 8. axb5 {[%clk 0:02:54]}  Nxc3 {[%clk 0:02:55]} 9. bxc3 {[%clk 0:02:55]}  cxb5 {[%clk 0:02:55]} 10. Ng5 {[%clk 0:02:55]}  Bb7 {[%clk 0:02:50]} 11. Qg4 {[%clk 0:02:46]}  Be7 {[%clk 0:02:45]} 12. Be2 {[%clk 0:02:39]}  O-O {[%clk 0:02:39]} 13. Bf3 {[%clk 0:02:37]}  Bxf3 {[%clk 0:02:35]} 14. Qxf3 {[%clk 0:02:36]}  Qd5 {[%clk 0:02:28]} 15. Qh5 {[%clk 0:02:28]}  Bxg5 {[%clk 0:02:22]} 16. Bxg5 {[%clk 0:02:26]}  Nc6 {[%clk 0:02:18]} 17. O-O {[%clk 0:02:20]}  Qe4 {[%clk 0:02:10]} 18. Ra6 {[%clk 0:02:18]}  b4 {[%clk 0:02:04]} 19. f3 {[%clk 0:01:34]}  Qd5 {[%clk 0:01:56]} 20. Re1 {[%clk 0:01:34]}  f5 {[%clk 0:00:58]} 21. exf6 {[%clk 0:01:24]}  gxf6 {[%clk 0:00:58]} 22. Rxc6 {[%clk 0:01:24]}  Qxc6 {[%clk 0:00:52]} 23. Qg4 {[%clk 0:01:13]}  fxg5 {[%clk 0:00:24]} 24. Qxg5+ {[%clk 0:01:01]}  Kh8 {[%clk 0:00:24]} 25. Qe5+ {[%clk 0:01:00]}  Kg8 {[%clk 0:00:24]} 26. Re4 {[%clk 0:00:55]}  bxc3 {[%clk 0:00:06]} 27. Rg4+ {[%clk 0:00:46]}  Kf7 {[%clk 0:00:06]} 28. Rg7+ {[%clk 0:00:44]}  Ke8 {[%clk 0:00:07]} 29. Qh5+ {[%clk 0:00:39]}  Kd8 {[%clk 0:00:07]} 30. Qg5+ {[%clk 0:00:39]}  Kc8 {[%clk 0:00:07]} 31. Qe7 {[%clk 0:00:39]}  Re8 {[%clk 0:00:05]} 32. Qa3 {[%clk 0:00:36]}  c2 {[%clk 0:00:04]} 33. h4 {[%clk 0:00:33]}  a5 {[%clk 0:00:04]} 34. Rxh7 {[%clk 0:00:31]}  c3 {[%clk 0:00:03]} 35. h5 {[%clk 0:00:29]}  a4 {[%clk 0:00:02]} 36. h6 {[%clk 0:00:29]}  Rb8 {[%clk 0:00:03]} 37. Kh2 {[%clk 0:00:24]}  Rb1 {[%clk 0:00:02]} 38. Re7 {[%clk 0:00:21]}  c1=Q {[%clk 0:00:03]} 39. Rxe8+ {[%clk 0:00:21]}  Qxe8 {[%clk 0:00:03]} 40. Qc5+ {[%clk 0:00:20]}  Kd8 {[%clk 0:00:03]} 41. Qd6+ {[%clk 0:00:20]}  Qd7 {[%clk 0:00:04]} 42. Qf8+ {[%clk 0:00:19]}  Kc7 {[%clk 0:00:05]} 43. Qc5+ {[%clk 0:00:18]}  Qc6 {[%clk 0:00:06]} 44. Qe7+ {[%clk 0:00:19]}  Kb6 {[%clk 0:00:06]} 45. Qd8+ {[%clk 0:00:18]}  Qc7+ {[%clk 0:00:07]} 46. Qxc7+ {[%clk 0:00:18]}  Kxc7 {[%clk 0:00:08]} 47. h7 {[%clk 0:00:18]}  Qh6+ {[%clk 0:00:09]} 48. Kg3 {[%clk 0:00:13]}  Qxh7 {[%clk 0:00:10]} 0-1


[Site "https://www.chess.com"]

[Event "Titled Tuesday Blitz December 27 Late 2022"]
[White "Papayan, Oleg"]
[Black "Goltseva, Ekaterina"]
[WhiteFideId "4193911"]
[BlackFideId "24173770"]
[WhiteElo "2253"]
[BlackElo "2283"]
[Result "1-0"]
[Round "05"]
[TimeControl "180+2"]
[Date "2022.12.27"]
[WhiteClock "0:00:06"]
[BlackClock "0:00:32"]

1. e4 {[%clk 0:02:57]}  c5 {[%clk 0:02:00]} 2. Nf3 {[%clk 0:02:56]}  e6 {[%clk 0:02:00]} 3. d4 {[%clk 0:02:53]}  cxd4 {[%clk 0:02:01]} 4. Nxd4 {[%clk 0:02:54]}  Nf6 {[%clk 0:02:01]} 5. Nc3 {[%clk 0:02:55]}  a6 {[%clk 0:02:01]} 6. e5 {[%clk 0:02:49]}  Ng8 {[%clk 0:01:52]} 7. g3 {[%clk 0:02:27]}  d6 {[%clk 0:01:46]} 8. exd6 {[%clk 0:02:20]}  Bxd6 {[%clk 0:01:47]} 9. Bg2 {[%clk 0:02:18]}  Ne7 {[%clk 0:01:47]} 10. O-O {[%clk 0:02:17]}  O-O {[%clk 0:01:47]} 11. Be3 {[%clk 0:01:57]}  Nbc6 {[%clk 0:01:46]} 12. Nxc6 {[%clk 0:01:52]}  bxc6 {[%clk 0:01:43]} 13. Qe2 {[%clk 0:01:49]}  Qc7 {[%clk 0:01:39]} 14. Ne4 {[%clk 0:01:39]}  Be5 {[%clk 0:01:39]} 15. c3 {[%clk 0:01:24]}  a5 {[%clk 0:01:39]} 16. Rfd1 {[%clk 0:01:21]}  Ba6 {[%clk 0:01:38]} 17. Qc2 {[%clk 0:01:21]}  Nd5 {[%clk 0:01:34]} 18. Bc5 {[%clk 0:01:18]}  Rfd8 {[%clk 0:01:34]} 19. f4 {[%clk 0:01:17]}  Bf6 {[%clk 0:01:33]} 20. c4 {[%clk 0:01:04]}  Nb4 {[%clk 0:01:20]} 21. Nxf6+ {[%clk 0:01:04]}  gxf6 {[%clk 0:01:20]} 22. Qc3 {[%clk 0:01:05]}  f5 {[%clk 0:01:10]} 23. a3 {[%clk 0:00:55]}  Rxd1+ {[%clk 0:01:04]} 24. Rxd1 {[%clk 0:00:56]}  Rd8 {[%clk 0:01:05]} 25. Rxd8+ {[%clk 0:00:47]}  Qxd8 {[%clk 0:01:05]} 26. axb4 {[%clk 0:00:48]}  Qd1+ {[%clk 0:01:06]} 27. Kf2 {[%clk 0:00:38]}  axb4 {[%clk 0:01:04]} 28. Bxb4 {[%clk 0:00:37]}  Qb1 {[%clk 0:00:59]} 29. Bxc6 {[%clk 0:00:30]}  Qa2 {[%clk 0:01:00]} 30. Bb5 {[%clk 0:00:18]}  Bb7 {[%clk 0:00:59]} 31. c5 {[%clk 0:00:17]}  Bd5 {[%clk 0:00:50]} 32. c6 {[%clk 0:00:15]}  Qa7+ {[%clk 0:00:49]} 33. Bc5 {[%clk 0:00:12]}  Qa1 {[%clk 0:00:45]} 34. c7 {[%clk 0:00:11]}  Bb7 {[%clk 0:00:45]} 35. Bd7 {[%clk 0:00:05]}  Qh1 {[%clk 0:00:42]} 36. c8=Q+ {[%clk 0:00:03]}  Bxc8 {[%clk 0:00:43]} 37. Bxc8 {[%clk 0:00:04]}  Qxh2+ {[%clk 0:00:43]} 38. Kf1 {[%clk 0:00:04]}  Qh1+ {[%clk 0:00:43]} 39. Bg1 {[%clk 0:00:04]}  Qh3+ {[%clk 0:00:42]} 40. Kf2 {[%clk 0:00:05]}  Qh1 {[%clk 0:00:39]} 41. b4 {[%clk 0:00:04]}  Qe4 {[%clk 0:00:38]} 42. b5 {[%clk 0:00:04]}  h5 {[%clk 0:00:39]} 43. b6 {[%clk 0:00:04]}  h4 {[%clk 0:00:40]} 44. b7 {[%clk 0:00:04]}  h3 {[%clk 0:00:38]} 45. b8=Q {[%clk 0:00:02]}  Qg2+ {[%clk 0:00:39]} 46. Ke3 {[%clk 0:00:03]}  Qxg3+ {[%clk 0:00:38]} 47. Kd2 {[%clk 0:00:02]}  Qg2+ {[%clk 0:00:37]} 48. Kd3 {[%clk 0:00:03]}  Qf3+ {[%clk 0:00:36]} 49. Be3 {[%clk 0:00:03]}  Qe4+ {[%clk 0:00:35]} 50. Kd2 {[%clk 0:00:03]}  Qg2+ {[%clk 0:00:36]} 51. Kc1 {[%clk 0:00:04]}  Qf1+ {[%clk 0:00:36]} 52. Kb2 {[%clk 0:00:04]}  Qe2+ {[%clk 0:00:36]} 53. Bd2 {[%clk 0:00:05]}  Kh7 {[%clk 0:00:34]} 54. Bxe6 {[%clk 0:00:05]}  Qxe6 {[%clk 0:00:31]} 55. Qbh8+ {[%clk 0:00:05]}  Kg6 {[%clk 0:00:32]} 56. Qhg7+ {[%clk 0:00:06]}  Kh5 {[%clk 0:00:32]} 57. Qg5# {[%clk 0:00:06]} 1-0


[Site "https://www.chess.com"]

[Event "Titled Tuesday Blitz December 27 Late 2022"]
[White "Pershin, Denis"]
[Black "Novikov, Evgenij"]
[WhiteFideId "24165506"]
[BlackFideId "4125380"]
[WhiteElo "2366"]
[BlackElo "2276"]
[Result "1-0"]
[Round "05"]
[TimeControl "180+2"]
[Date "2022.12.27"]
[WhiteClock "0:01:31"]
[BlackClock "0:00:05"]

1. d4 {[%clk 0:03:00]}  d6 {[%clk 0:02:57]} 2. e4 {[%clk 0:02:59]}  c6 {[%clk 0:02:56]} 3. f4 {[%clk 0:02:58]}  Qc7 {[%clk 0:02:54]} 4. Nf3 {[%clk 0:02:57]}  Bg4 {[%clk 0:02:55]} 5. Bd3 {[%clk 0:02:55]}  Nd7 {[%clk 0:02:54]} 6. h3 {[%clk 0:02:52]}  Bxf3 {[%clk 0:02:53]} 7. Qxf3 {[%clk 0:02:53]}  e5 {[%clk 0:02:54]} 8. c3 {[%clk 0:02:52]}  Ngf6 {[%clk 0:02:42]} 9. Na3 {[%clk 0:02:52]}  b5 {[%clk 0:02:27]} 10. Nc2 {[%clk 0:02:52]}  a6 {[%clk 0:02:21]} 11. O-O {[%clk 0:02:51]}  Be7 {[%clk 0:02:20]} 12. Kh1 {[%clk 0:02:50]}  h5 {[%clk 0:02:17]} 13. Ne3 {[%clk 0:02:50]}  g6 {[%clk 0:01:58]} 14. Bd2 {[%clk 0:02:50]}  c5 {[%clk 0:01:41]} 15. fxe5 {[%clk 0:02:44]}  dxe5 {[%clk 0:01:40]} 16. Nd5 {[%clk 0:02:45]}  Qd6 {[%clk 0:01:26]} 17. Nxe7 {[%clk 0:02:45]}  Kxe7 {[%clk 0:01:15]} 18. Bg5 {[%clk 0:02:46]}  c4 {[%clk 0:01:11]} 19. Bc2 {[%clk 0:02:43]}  a5 {[%clk 0:01:11]} 20. Rad1 {[%clk 0:02:42]}  Ra6 {[%clk 0:00:58]} 21. dxe5 {[%clk 0:02:34]}  Qxe5 {[%clk 0:00:47]} 22. Rxd7+ {[%clk 0:02:34]}  Kxd7 {[%clk 0:00:46]} 23. Bxf6 {[%clk 0:02:35]}  Rxf6 {[%clk 0:00:41]} 24. Qxf6 {[%clk 0:02:36]}  Qxf6 {[%clk 0:00:35]} 25. Rxf6 {[%clk 0:02:36]}  Ke7 {[%clk 0:00:35]} 26. Rb6 {[%clk 0:02:30]}  Rd8 {[%clk 0:00:35]} 27. Rxb5 {[%clk 0:02:25]}  Rd2 {[%clk 0:00:35]} 28. Ba4 {[%clk 0:02:25]}  Re2 {[%clk 0:00:28]} 29. e5 {[%clk 0:02:20]}  Ke6 {[%clk 0:00:25]} 30. Rxa5 {[%clk 0:02:12]}  Rxb2 {[%clk 0:00:23]} 31. Bb5 {[%clk 0:02:12]}  Kd5 {[%clk 0:00:22]} 32. Be8+ {[%clk 0:01:51]}  Ke6 {[%clk 0:00:14]} 33. Rc5 {[%clk 0:01:36]}  Rxa2 {[%clk 0:00:11]} 34. Bb5 {[%clk 0:01:31]}  Ra1+ {[%clk 0:00:07]} 35. Kh2 {[%clk 0:01:31]}  Re1 {[%clk 0:00:07]} 36. Bxc4+ {[%clk 0:01:31]}  Kf5 {[%clk 0:00:06]} 37. Bxf7 {[%clk 0:01:31]}  Rxe5 {[%clk 0:00:05]} 38. Bxg6+ {[%clk 0:01:30]}  Kf6 {[%clk 0:00:05]} 39. Rxe5 {[%clk 0:01:31]} 1-0


[Site "https://www.chess.com"]

[Event "Titled Tuesday Blitz December 27 Late 2022"]
[White "Pinheiro, Iung Alicio de O."]
[Black "Rian, Kapriaga"]
[WhiteFideId "2104350"]
[BlackFideId "7103263"]
[WhiteElo "2306"]
[BlackElo "2089"]
[Result "0-1"]
[Round "05"]
[TimeControl "180+2"]
[Date "2022.12.27"]
[WhiteClock "0:00:09"]
[BlackClock "0:00:04"]

1. d4 {[%clk 0:02:49]}  Nf6 {[%clk 0:02:57]} 2. Bf4 {[%clk 0:02:39]}  e6 {[%clk 0:02:57]} 3. e3 {[%clk 0:02:36]}  d5 {[%clk 0:02:57]} 4. Nd2 {[%clk 0:02:33]}  Bd6 {[%clk 0:02:56]} 5. Bg3 {[%clk 0:02:32]}  O-O {[%clk 0:02:56]} 6. Bd3 {[%clk 0:02:30]}  c5 {[%clk 0:02:56]} 7. c3 {[%clk 0:02:30]}  Qc7 {[%clk 0:02:56]} 8. dxc5 {[%clk 0:02:20]}  Qxc5 {[%clk 0:02:55]} 9. Ngf3 {[%clk 0:02:17]}  Nbd7 {[%clk 0:02:51]} 10. e4 {[%clk 0:02:17]}  Qc7 {[%clk 0:02:36]} 11. Qe2 {[%clk 0:02:14]}  dxe4 {[%clk 0:02:16]} 12. Bxe4 {[%clk 0:02:10]}  Nc5 {[%clk 0:01:59]} 13. O-O-O {[%clk 0:02:01]}  h6 {[%clk 0:01:51]} 14. Bc2 {[%clk 0:01:50]}  Bxg3 {[%clk 0:01:46]} 15. hxg3 {[%clk 0:01:48]}  Bd7 {[%clk 0:01:46]} 16. Ne5 {[%clk 0:01:44]}  Bc6 {[%clk 0:01:43]} 17. g4 {[%clk 0:01:38]}  Rfd8 {[%clk 0:01:33]} 18. g5 {[%clk 0:01:06]}  hxg5 {[%clk 0:01:32]} 19. Rh2 {[%clk 0:01:03]}  Kf8 {[%clk 0:01:18]} 20. Re1 {[%clk 0:00:54]}  Ke7 {[%clk 0:01:07]} 21. b4 {[%clk 0:00:48]}  Nce4 {[%clk 0:00:58]} 22. Nxc6+ {[%clk 0:00:39]}  bxc6 {[%clk 0:00:52]} 23. Nxe4 {[%clk 0:00:26]}  Qxh2 {[%clk 0:00:52]} 24. Nc5 {[%clk 0:00:22]}  Qf4+ {[%clk 0:00:48]} 25. Kb2 {[%clk 0:00:21]}  a5 {[%clk 0:00:37]} 26. Nxe6 {[%clk 0:00:20]}  fxe6 {[%clk 0:00:32]} 27. Qxe6+ {[%clk 0:00:21]}  Kf8 {[%clk 0:00:32]} 28. Bg6 {[%clk 0:00:21]}  Ra7 {[%clk 0:00:26]} 29. Rh1 {[%clk 0:00:19]}  Qd2+ {[%clk 0:00:17]} 30. Kb1 {[%clk 0:00:20]}  Ng8 {[%clk 0:00:12]} 31. Bh7 {[%clk 0:00:16]}  Rf7 {[%clk 0:00:07]} 32. f3 {[%clk 0:00:09]}  Qxc3 {[%clk 0:00:05]} 33. Bg6 {[%clk 0:00:08]}  Qxb4+ {[%clk 0:00:05]} 34. Ka1 {[%clk 0:00:08]}  Qc3+ {[%clk 0:00:05]} 35. Kb1 {[%clk 0:00:09]}  Rb7+ {[%clk 0:00:04]} 0-1


[Site "https://www.chess.com"]

[Event "Titled Tuesday Blitz December 27 Late 2022"]
[White "Poltorak, Sebastian"]
[Black "Albertini, Luca"]
[WhiteFideId "1199498"]
[BlackFideId "847038"]
[WhiteElo "2354"]
[BlackElo "2084"]
[Result "1-0"]
[Round "05"]
[TimeControl "180+2"]
[Date "2022.12.27"]
[WhiteClock "0:01:26"]
[BlackClock "0:00:28"]

1. d4 {[%clk 0:02:57]}  Nf6 {[%clk 0:02:59]} 2. c4 {[%clk 0:02:57]}  g6 {[%clk 0:02:58]} 3. Nc3 {[%clk 0:02:56]}  d6 {[%clk 0:02:58]} 4. e4 {[%clk 0:02:56]}  Bg7 {[%clk 0:02:41]} 5. f3 {[%clk 0:02:57]}  O-O {[%clk 0:02:42]} 6. Nge2 {[%clk 0:02:57]}  Na6 {[%clk 0:02:41]} 7. Be3 {[%clk 0:02:56]}  c5 {[%clk 0:02:42]} 8. d5 {[%clk 0:02:54]}  e5 {[%clk 0:02:40]} 9. g4 {[%clk 0:02:54]}  Ne8 {[%clk 0:02:39]} 10. Ng3 {[%clk 0:02:53]}  f5 {[%clk 0:02:37]} 11. gxf5 {[%clk 0:02:53]}  gxf5 {[%clk 0:02:37]} 12. exf5 {[%clk 0:02:54]}  Bxf5 {[%clk 0:02:35]} 13. Nxf5 {[%clk 0:02:54]}  Rxf5 {[%clk 0:02:36]} 14. Bd3 {[%clk 0:02:55]}  Rh5 {[%clk 0:02:29]} 15. Qd2 {[%clk 0:02:50]}  Nb4 {[%clk 0:02:28]} 16. Be4 {[%clk 0:02:43]}  Bh6 {[%clk 0:02:10]} 17. Rg1+ {[%clk 0:02:38]}  Kh8 {[%clk 0:02:09]} 18. O-O-O {[%clk 0:02:19]}  Qh4 {[%clk 0:02:00]} 19. Bxh6 {[%clk 0:02:05]}  Rxh6 {[%clk 0:01:59]} 20. Qg2 {[%clk 0:02:06]}  Qf4+ {[%clk 0:01:49]} 21. Kb1 {[%clk 0:02:06]}  Qf7 {[%clk 0:01:50]} 22. a3 {[%clk 0:02:05]}  Na6 {[%clk 0:01:48]} 23. Qg5 {[%clk 0:02:02]}  Rh5 {[%clk 0:01:44]} 24. Qg4 {[%clk 0:01:47]}  Nf6 {[%clk 0:01:37]} 25. Qe6 {[%clk 0:01:47]}  Qxe6 {[%clk 0:01:35]} 26. dxe6 {[%clk 0:01:48]}  Ne8 {[%clk 0:01:23]} 27. Nd5 {[%clk 0:01:44]}  Rh6 {[%clk 0:01:08]} 28. Ne7 {[%clk 0:01:40]}  Ng7 {[%clk 0:01:07]} 29. Rxg7 {[%clk 0:01:36]}  Kxg7 {[%clk 0:01:06]} 30. Nf5+ {[%clk 0:01:36]}  Kg6 {[%clk 0:01:06]} 31. Rg1+ {[%clk 0:01:36]}  Kh5 {[%clk 0:01:03]} 32. Nxh6 {[%clk 0:01:27]}  Kxh6 {[%clk 0:01:04]} 33. Bxb7 {[%clk 0:01:27]}  Re8 {[%clk 0:00:45]} 34. Bxa6 {[%clk 0:01:26]}  Rxe6 {[%clk 0:00:45]} 35. Bb7 {[%clk 0:01:26]}  Rf6 {[%clk 0:00:43]} 36. Be4 {[%clk 0:01:26]}  Rf4 {[%clk 0:00:42]} 37. b4 {[%clk 0:01:27]}  Rh4 {[%clk 0:00:39]} 38. Rg2 {[%clk 0:01:27]}  a6 {[%clk 0:00:34]} 39. Kb2 {[%clk 0:01:26]}  Rf4 {[%clk 0:00:34]} 40. Kc3 {[%clk 0:01:25]}  Rf7 {[%clk 0:00:34]} 41. b5 {[%clk 0:01:25]}  axb5 {[%clk 0:00:34]} 42. cxb5 {[%clk 0:01:26]}  Ra7 {[%clk 0:00:33]} 43. Kb3 {[%clk 0:01:26]}  Ra5 {[%clk 0:00:33]} 44. a4 {[%clk 0:01:26]}  c4+ {[%clk 0:00:32]} 45. Kb4 {[%clk 0:01:26]}  Ra7 {[%clk 0:00:32]} 46. a5 {[%clk 0:01:27]}  c3 {[%clk 0:00:32]} 47. b6 {[%clk 0:01:27]}  c2 {[%clk 0:00:31]} 48. Rxc2 {[%clk 0:01:25]}  Rg7 {[%clk 0:00:28]} 49. b7 {[%clk 0:01:26]} 1-0


[Site "https://www.chess.com"]

[Event "Titled Tuesday Blitz December 27 Late 2022"]
[White "Popilski, Gil"]
[Black "Steinberg, Nitzan"]
[WhiteFideId "2809060"]
[BlackFideId "2801795"]
[WhiteElo "2443"]
[BlackElo "2546"]
[Result "1-0"]
[Round "05"]
[TimeControl "180+2"]
[Date "2022.12.27"]
[WhiteClock "0:00:16"]
[BlackClock "0:00:01"]

1. e4 {[%clk 0:02:46]}  e5 {[%clk 0:03:00]} 2. Nf3 {[%clk 0:02:45]}  Nc6 {[%clk 0:03:00]} 3. d4 {[%clk 0:02:45]}  exd4 {[%clk 0:03:00]} 4. Nxd4 {[%clk 0:02:46]}  Bb4+ {[%clk 0:02:56]} 5. c3 {[%clk 0:02:45]}  Be7 {[%clk 0:02:55]} 6. Nxc6 {[%clk 0:02:41]}  bxc6 {[%clk 0:02:50]} 7. e5 {[%clk 0:02:40]}  d5 {[%clk 0:02:45]} 8. Bd3 {[%clk 0:02:38]}  Rb8 {[%clk 0:02:33]} 9. O-O {[%clk 0:02:37]}  h5 {[%clk 0:02:32]} 10. Nd2 {[%clk 0:02:28]}  Nh6 {[%clk 0:02:28]} 11. Nb3 {[%clk 0:02:02]}  c5 {[%clk 0:01:43]} 12. c4 {[%clk 0:01:58]}  c6 {[%clk 0:01:34]} 13. Bf4 {[%clk 0:01:30]}  Be6 {[%clk 0:01:33]} 14. Rc1 {[%clk 0:01:29]}  Rc8 {[%clk 0:01:04]} 15. Qc2 {[%clk 0:01:12]}  Qd7 {[%clk 0:00:57]} 16. cxd5 {[%clk 0:01:01]}  cxd5 {[%clk 0:00:55]} 17. Ba6 {[%clk 0:01:00]}  Rc7 {[%clk 0:00:24]} 18. Nd4 {[%clk 0:00:59]}  O-O {[%clk 0:00:24]} 19. Bb5 {[%clk 0:00:49]}  Qc8 {[%clk 0:00:23]} 20. Bxh6 {[%clk 0:00:48]}  gxh6 {[%clk 0:00:23]} 21. f4 {[%clk 0:00:41]}  Bd8 {[%clk 0:00:18]} 22. Nxe6 {[%clk 0:00:33]}  Qxe6 {[%clk 0:00:19]} 23. Bd3 {[%clk 0:00:33]}  c4 {[%clk 0:00:18]} 24. Bf5 {[%clk 0:00:33]}  Qb6+ {[%clk 0:00:19]} 25. Kh1 {[%clk 0:00:32]}  Be7 {[%clk 0:00:18]} 26. Qd1 {[%clk 0:00:31]}  d4 {[%clk 0:00:14]} 27. Qxh5 {[%clk 0:00:31]}  d3 {[%clk 0:00:13]} 28. e6 {[%clk 0:00:28]}  Rc5 {[%clk 0:00:10]} 29. Rf3 {[%clk 0:00:20]}  d2 {[%clk 0:00:03]} 30. Rd1 {[%clk 0:00:18]}  c3 {[%clk 0:00:01]} 31. bxc3 {[%clk 0:00:18]}  Qb2 {[%clk 0:00:01]} 32. Rg3+ {[%clk 0:00:18]}  Bg5 {[%clk 0:00:01]} 33. Rxg5+ {[%clk 0:00:15]}  hxg5 {[%clk 0:00:01]} 34. Qh7# {[%clk 0:00:16]} 1-0


[Site "https://www.chess.com"]

[Event "Titled Tuesday Blitz December 27 Late 2022"]
[White "Potapova, Margarita"]
[Black "Sailer, Mike"]
[WhiteFideId "14126869"]
[BlackFideId "2012901"]
[WhiteElo "2104"]
[BlackElo "2109"]
[Result "1-0"]
[Round "05"]
[TimeControl "180+2"]
[Date "2022.12.27"]
[WhiteClock "0:01:57"]
[BlackClock "0:00:02"]

1. e4 {[%clk 0:03:00]}  d5 {[%clk 0:02:58]} 2. exd5 {[%clk 0:03:00]}  Qxd5 {[%clk 0:02:58]} 3. Nc3 {[%clk 0:03:01]}  Qd6 {[%clk 0:02:58]} 4. d4 {[%clk 0:03:00]}  Nf6 {[%clk 0:02:58]} 5. Nf3 {[%clk 0:02:59]}  c6 {[%clk 0:02:58]} 6. Ne5 {[%clk 0:02:57]}  Nbd7 {[%clk 0:02:58]} 7. Nc4 {[%clk 0:02:57]}  Qc7 {[%clk 0:02:58]} 8. Be2 {[%clk 0:02:55]}  Nb6 {[%clk 0:02:57]} 9. Ne5 {[%clk 0:02:54]}  Bf5 {[%clk 0:02:54]} 10. O-O {[%clk 0:02:54]}  e6 {[%clk 0:02:54]} 11. Bf4 {[%clk 0:02:53]}  Bd6 {[%clk 0:02:49]} 12. a4 {[%clk 0:02:51]}  a5 {[%clk 0:02:48]} 13. h3 {[%clk 0:02:43]}  h6 {[%clk 0:02:44]} 14. Bd3 {[%clk 0:02:31]}  Bxd3 {[%clk 0:02:43]} 15. Qxd3 {[%clk 0:02:32]}  O-O {[%clk 0:02:41]} 16. Rfe1 {[%clk 0:02:27]}  Nbd5 {[%clk 0:02:40]} 17. Nxd5 {[%clk 0:02:27]}  cxd5 {[%clk 0:02:36]} 18. c3 {[%clk 0:02:26]}  Nd7 {[%clk 0:02:08]} 19. Qg3 {[%clk 0:02:21]}  Bxe5 {[%clk 0:01:56]} 20. Bxe5 {[%clk 0:02:18]}  Nxe5 {[%clk 0:01:55]} 21. Rxe5 {[%clk 0:02:19]}  Rae8 {[%clk 0:01:22]} 22. Rae1 {[%clk 0:02:18]}  Qc6 {[%clk 0:01:16]} 23. b3 {[%clk 0:02:15]}  Qd6 {[%clk 0:01:05]} 24. Qg4 {[%clk 0:02:15]}  Qb6 {[%clk 0:00:56]} 25. R5e3 {[%clk 0:02:10]}  Qxb3 {[%clk 0:00:48]} 26. Rg3 {[%clk 0:02:09]}  g6 {[%clk 0:00:49]} 27. h4 {[%clk 0:02:09]}  Qc2 {[%clk 0:00:27]} 28. Re5 {[%clk 0:02:07]}  Kg7 {[%clk 0:00:06]} 29. h5 {[%clk 0:01:57]}  g5 {[%clk 0:00:06]} 30. Rxg5+ {[%clk 0:01:57]}  hxg5 {[%clk 0:00:02]} 31. Qxg5+ {[%clk 0:01:57]} 1-0


[Site "https://www.chess.com"]

[Event "Titled Tuesday Blitz December 27 Late 2022"]
[White "Ptacnikova, Lenka"]
[Black "Balague Camps, Marc"]
[WhiteFideId "305650"]
[BlackFideId "2297914"]
[WhiteElo "2099"]
[BlackElo "2190"]
[Result "1-0"]
[Round "05"]
[TimeControl "180+2"]
[Date "2022.12.27"]
[WhiteClock "0:00:05"]
[BlackClock "0:00:02"]

1. d4 {[%clk 0:03:00]}  Nf6 {[%clk 0:02:59]} 2. Nc3 {[%clk 0:02:59]}  d5 {[%clk 0:02:58]} 3. Bf4 {[%clk 0:02:59]}  Bf5 {[%clk 0:02:54]} 4. e3 {[%clk 0:02:58]}  c6 {[%clk 0:02:54]} 5. f3 {[%clk 0:02:55]}  Nh5 {[%clk 0:02:44]} 6. Bxb8 {[%clk 0:02:49]}  Qxb8 {[%clk 0:02:45]} 7. g4 {[%clk 0:02:47]}  Ng3 {[%clk 0:02:42]} 8. hxg3 {[%clk 0:02:26]}  Qxg3+ {[%clk 0:02:42]} 9. Kd2 {[%clk 0:02:26]}  Bg6 {[%clk 0:02:41]} 10. Qe1 {[%clk 0:02:08]}  Qd6 {[%clk 0:02:39]} 11. a3 {[%clk 0:02:05]}  e5 {[%clk 0:02:37]} 12. Rd1 {[%clk 0:01:56]}  b5 {[%clk 0:02:05]} 13. Kc1 {[%clk 0:01:43]}  a5 {[%clk 0:02:01]} 14. Nb1 {[%clk 0:01:34]}  f6 {[%clk 0:01:55]} 15. Ne2 {[%clk 0:01:25]}  Be7 {[%clk 0:01:47]} 16. Ng3 {[%clk 0:01:24]}  b4 {[%clk 0:01:45]} 17. a4 {[%clk 0:01:23]}  b3 {[%clk 0:01:36]} 18. cxb3 {[%clk 0:01:12]}  Qb8 {[%clk 0:01:32]} 19. Bd3 {[%clk 0:00:51]}  Kf7 {[%clk 0:01:26]} 20. Bxg6+ {[%clk 0:00:44]}  hxg6 {[%clk 0:01:26]} 21. Rxh8 {[%clk 0:00:42]}  Qxh8 {[%clk 0:01:27]} 22. Nd2 {[%clk 0:00:31]}  Bb4 {[%clk 0:01:16]} 23. Qf2 {[%clk 0:00:20]}  Qb8 {[%clk 0:01:13]} 24. Ngf1 {[%clk 0:00:18]}  c5 {[%clk 0:01:10]} 25. e4 {[%clk 0:00:17]}  cxd4 {[%clk 0:01:06]} 26. exd5 {[%clk 0:00:17]}  Ra7 {[%clk 0:00:57]} 27. Nc4 {[%clk 0:00:16]}  Qd8 {[%clk 0:00:51]} 28. Ng3 {[%clk 0:00:15]}  Qxd5 {[%clk 0:00:50]} 29. Ne4 {[%clk 0:00:15]}  Rc7 {[%clk 0:00:50]} 30. Kb1 {[%clk 0:00:15]}  Rc6 {[%clk 0:00:39]} 31. Qe2 {[%clk 0:00:14]}  Be7 {[%clk 0:00:36]} 32. Qd3 {[%clk 0:00:14]}  f5 {[%clk 0:00:36]} 33. Nf2 {[%clk 0:00:13]}  Rf6 {[%clk 0:00:32]} 34. Re1 {[%clk 0:00:11]}  fxg4 {[%clk 0:00:26]} 35. Nxe5+ {[%clk 0:00:10]}  Kg8 {[%clk 0:00:25]} 36. Nfxg4 {[%clk 0:00:11]}  Rf4 {[%clk 0:00:25]} 37. Nxg6 {[%clk 0:00:10]}  Bb4 {[%clk 0:00:20]} 38. Nxf4 {[%clk 0:00:09]}  Qg5 {[%clk 0:00:17]} 39. Re4 {[%clk 0:00:08]}  Bd6 {[%clk 0:00:11]} 40. Ne2 {[%clk 0:00:08]}  Bc5 {[%clk 0:00:10]} 41. Nxd4 {[%clk 0:00:08]}  Qh4 {[%clk 0:00:09]} 42. Ne2 {[%clk 0:00:07]}  Bf8 {[%clk 0:00:09]} 43. Qd5+ {[%clk 0:00:07]}  Kh8 {[%clk 0:00:09]} 44. Qxa5 {[%clk 0:00:06]}  Qh1+ {[%clk 0:00:05]} 45. Ka2 {[%clk 0:00:07]}  Qxf3 {[%clk 0:00:06]} 46. Qd5 {[%clk 0:00:05]}  Kh7 {[%clk 0:00:06]} 47. Qh5+ {[%clk 0:00:04]}  Kg8 {[%clk 0:00:04]} 48. Qe5 {[%clk 0:00:05]}  Qf7 {[%clk 0:00:02]} 49. Qe6 {[%clk 0:00:05]} 1-0


[Site "https://www.chess.com"]